bitfinex/quotes_SOLUSD_20241213
["timestamp","ask_amount","ask_price","bid_price","bid_amount"]
[1734105741399,2.328e-05,220.74,220.69,3.0]
[1734105742470,2.328e-05,220.74,220.7,34.87253295]
[1734105742674,2.328e-05,220.74,220.69,3.0]
[1734105744305,2.328e-05,220.74,220.7,34.87253295]
[1734105744513,2.328e-05,220.74,220.72,34.87253295]
[1734105744802,2.328e-05,220.74,220.73,23.776884]
[1734105745582,18.80675855,220.93,220.74,11.3255]
[1734105745786,18.80675855,220.93,220.8,23.776884]
[1734105745787,0.84885855,220.93,220.8,23.776884]
[1734105746185,17.4572,220.98,220.8,23.776884]
[1734105746186,0.84878968,220.94,220.8,23.776884]
[1734105746494,0.84878968,220.94,220.76,23.776884]
[1734105746705,0.84878968,220.94,220.74,11.3255]
[1734105746706,0.84878968,220.94,220.74,23.776884]
[1734105746871,0.84878968,220.94,220.71,42.77993295]
[1734105746872,20.0,220.92,220.72,23.776884]
[1734105747072,0.84878968,220.94,220.77,34.87253295]
[1734105747073,0.84901799,220.94,220.77,34.87253295]
[1734105747266,0.84901799,220.94,220.78,23.776884]
[1734105748081,0.84901799,220.94,220.8,23.776884]
[1734105748268,0.84885109,220.96,220.8,23.776884]
[1734105748584,11.3147,220.95,220.78,23.776884]
[1734105748798,11.3147,220.95,220.8,23.776884]
[1734105748799,0.84881308,220.94,220.8,23.776884]
[1734105749082,12.16346359,220.95,220.82,23.776884]
[1734105749490,12.16346359,220.95,220.8,23.776884]
[1734105750095,0.84878606,220.94,220.82,23.776884]
[1734105750469,20.0,220.96,220.81,34.87253295]
[1734105750687,0.84868371,220.97,220.84,23.776884]
[1734105750996,0.84868371,220.97,220.81,34.87253295]
[1734105751291,0.84868371,220.97,220.83,34.87253295]
[1734105751499,0.84868371,220.97,220.81,58.64941695]
[1734105751702,0.84868371,220.97,220.81,23.776884]
[1734105751902,20.0,220.96,220.8,23.776884]
[1734105752104,0.84881152,220.95,220.8,23.776884]
[1734105752393,0.84881152,220.95,220.82,23.776884]
[1734105752577,0.84881152,220.95,220.75,34.87253295]
[1734105752980,0.84892832,220.94,220.77,34.87253295]
[1734105753385,11.3152,220.94,220.81,34.87253295]
[1734105753677,35.0,220.98,220.72,26.3262]
[1734105753678,0.84879535,221.01,220.85,34.87253295]
[1734105754281,11.3122,221.0,220.83,34.87253295]
[1734105754509,0.8486732,220.99,220.85,34.87253295]
[1734105754745,0.8486732,220.99,220.86,23.776884]
[1734105755083,0.84855916,221.03,220.88,23.776884]
[1734105755704,7.40809036,221.05,220.92,23.776884]
[1734105755916,1.145,221.14,220.95,34.87253295]
[1734105755917,11.3103,221.11,220.95,34.87253295]
[1734105756079,1.99329554,221.14,220.99,34.87253295]
[1734105756080,0.84819254,221.1,220.99,34.87253295]
[1734105756274,0.84812091,221.13,220.99,34.87253295]
[1734105756707,6.94146304,221.14,221.0,23.776884]
[1734105756916,6.0934,221.14,221.03,34.87253295]
[1734105757077,0.84798678,221.16,221.04,23.776884]
[1734105757282,0.84789086,221.19,221.05,34.87253295]
[1734105757496,0.84789086,221.19,221.06,23.776884]
[1734105757720,7.04260487,221.21,221.07,34.87253295]
[1734105757886,6.1948,221.21,221.08,23.776884]
[1734105758211,1.145,221.3,221.11,34.87253295]
[1734105758212,0.84769176,221.26,221.11,34.87253295]
[1734105758414,0.84769176,221.26,221.1,23.776884]
[1734105758415,3.20427183,221.25,221.13,34.87253295]
[1734105758635,0.84756454,221.28,221.13,34.87253295]
[1734105758834,0.84756454,221.28,221.1,35.083784]
[1734105758835,6.4542,221.29,221.17,34.87253295]
[1734105758994,6.4542,221.29,221.1,84.95631695]
[1734105758995,0.84734143,221.28,221.13,34.87253295]
[1734105759196,0.84734143,221.28,221.1,35.083784]
[1734105759197,0.84734143,221.28,221.14,20.0]
[1734105760136,11.2958,221.32,221.09,34.87253295]
[1734105760137,0.84753944,221.27,221.09,34.87253295]
[1734105760302,0.84753944,221.27,221.05,34.87253295]
[1734105760514,23.776884,221.24,221.03,36.39983295]
[1734105760798,23.776884,221.24,220.98,21.2925]
[1734105760799,20.0,221.2,220.99,34.87253295]
[1734105761005,20.0,221.2,221.03,34.87253295]
[1734105761006,0.84794008,221.19,221.03,34.87253295]
[1734105761620,0.84794008,221.19,221.07,34.87253295]
[1734105761836,20.0,221.23,221.07,34.87253295]
[1734105762030,0.8477391,221.22,221.08,0.12549]
[1734105762329,0.84780704,221.24,221.06,23.902374]
[1734105762740,0.84780704,221.24,221.07,34.87253295]
[1734105763042,0.84780704,221.24,221.08,0.12549]
[1734105763233,0.84780704,221.24,221.06,23.776884]
[1734105763439,11.3004,221.23,221.05,0.12549]
[1734105763636,20.0,221.2,221.01,34.87253295]
[1734105763799,20.0,221.2,221.05,34.87253295]
[1734105764006,20.0,221.2,221.07,34.87253295]
[1734105764215,0.84771417,221.19,221.07,34.87253295]
[1734105764426,0.84771417,221.19,221.03,34.87253295]
[1734105764630,0.84771417,221.19,221.01,34.87253295]
[1734105764809,11.303,221.18,221.01,34.87253295]
[1734105765007,0.8479297,221.23,221.11,34.87253295]
[1734105765242,0.84761277,221.31,221.13,34.87253295]
[1734105765602,0.84761277,221.31,221.05,15.0]
[1734105765603,0.84761277,221.31,221.09,34.87253295]
[1734105765806,0.84761277,221.31,221.11,34.87253295]
[1734105766112,0.84761277,221.31,221.13,34.87253295]
[1734105766322,12.14463885,221.3,221.13,34.87253295]
[1734105766842,12.14463885,221.3,221.08,11.3077]
[1734105766843,12.14463885,221.3,221.15,34.87253295]
[1734105767316,12.14463885,221.3,221.13,34.87253295]
[1734105768743,20.0,221.27,221.14,34.87253295]
[1734105768914,0.84754939,221.26,221.1,34.87253295]
[1734105769114,0.84754939,221.26,221.11,20.0]
[1734105769330,0.84754939,221.26,221.12,34.87253295]
[1734105769621,52.5873,221.37,221.16,34.87253295]
[1734105769622,0.84756599,221.29,221.16,34.87253295]
[1734105770024,0.84739764,221.33,221.16,34.87253295]
[1734105770407,11.2958,221.32,221.16,34.87253295]
[1734105770611,0.84743856,221.31,221.16,34.87253295]
[1734105771605,0.84743856,221.31,221.14,34.87253295]
[1734105771812,12.14433278,221.3,221.12,34.87253295]
[1734105772321,20.0,221.27,221.12,34.87253295]
[1734105772515,20.0,221.27,221.08,11.308]
[1734105772516,0.84764577,221.26,221.1,34.87253295]
[1734105772833,11.2994,221.25,221.08,34.87253295]
[1734105773035,0.84764786,221.24,221.1,34.87253295]
[1734105773237,0.84764786,221.24,221.12,34.87253295]
[1734105773539,20.84760337,221.26,221.14,34.87253295]
[1734105773724,0.84760337,221.26,221.14,34.87253295]
[1734105773910,20.84760337,221.26,221.14,34.87253295]
[1734105774121,0.84759199,221.28,221.15,0.12549]
[1734105774441,11.2984,221.27,221.1,34.87253295]
[1734105774618,0.84769839,221.26,221.1,34.87253295]
[1734105774818,35.076284,221.25,221.08,34.87253295]
[1734105775036,20.0,221.22,221.08,34.87253295]
[1734105775237,0.84782163,221.21,221.08,34.87253295]
[1734105775413,0.84782163,221.21,221.06,34.87253295]
[1734105775609,0.84782163,221.21,221.02,34.87253295]
[1734105775610,20.0,221.17,221.02,34.87253295]
[1734105775843,0.84802729,221.16,221.01,30.0]
[1734105776022,0.84802729,221.16,221.0,34.87253295]
[1734105777212,12.15212729,221.16,221.01,0.12549]
[1734105777418,20.0,221.13,221.0,34.87253295]
[1734105777626,0.84816738,221.12,221.0,34.87253295]
[1734105777856,0.84816738,221.12,220.98,34.87253295]
[1734105778047,20.0,221.08,220.92,34.87253295]
[1734105778245,0.84841913,221.07,220.9,34.87253295]
[1734105778552,6.4918,221.04,220.88,34.87253295]
[1734105778722,0.84855319,221.03,220.92,34.87253295]
[1734105778917,6.4918,221.04,220.94,34.87253295]
[1734105779125,0.84830905,221.07,220.96,34.87253295]
[1734105779318,0.848275,221.11,220.96,34.87253295]
[1734105779554,0.848275,221.11,220.94,34.87253295]
[1734105779737,20.0,221.09,220.94,34.87253295]
[1734105779922,0.84830253,221.08,220.96,34.87253295]
[1734105780535,0.84820678,221.11,220.96,34.87253295]
[1734105780739,0.84820678,221.11,220.97,0.12549]
[1734105781154,12.15500678,221.11,220.94,34.87253295]
[1734105781360,12.15500678,221.11,220.97,0.12549]
[1734105781692,0.84820678,221.11,221.04,34.87253295]
[1734105781967,0.84799218,221.18,221.06,34.87253295]
[1734105782167,0.84799218,221.18,221.04,34.87253295]
[1734105782349,0.84799218,221.18,221.02,34.87253295]
[1734105782550,0.84799218,221.18,221.04,34.87253295]
[1734105782738,6.3566,221.19,221.09,0.12549]
[1734105783067,0.84777028,221.18,221.05,0.12549]
[1734105783274,0.84777028,221.18,220.96,15.0]
[1734105783275,12.15097028,221.18,221.02,34.87253295]
[1734105783437,12.15097028,221.18,221.01,0.12549]
[1734105783637,12.15097028,221.18,221.03,0.12549]
[1734105783860,6.3566,221.19,221.09,0.12549]
[1734105784270,6.3566,221.19,221.11,0.12549]
[1734105784568,1.145,221.23,221.11,0.12549]
[1734105784872,1.145,221.23,221.1,34.87253295]
[1734105785050,0.84768199,221.22,221.08,34.87253295]
[1734105785260,0.84768199,221.22,221.09,0.12549]
[1734105785559,0.84768199,221.22,221.11,0.12549]
[1734105785740,0.84766904,221.25,221.15,0.12549]
[1734105785941,0.84766904,221.25,221.12,34.87253295]
[1734105786136,0.84766904,221.25,221.13,0.12549]
[1734105786757,11.2999,221.24,221.09,0.12549]
[1734105786956,11.3009,221.22,221.06,34.87253295]
[1734105787161,0.84782493,221.21,221.06,34.87253295]
[1734105788349,0.84782493,221.21,221.08,34.87253295]
[1734105788574,20.0,221.23,221.08,34.87253295]
[1734105788784,0.84776741,221.22,221.08,34.87253295]
[1734105788938,0.84776741,221.22,221.09,0.12549]
[1734105789139,0.84776741,221.22,221.1,34.87253295]
[1734105789457,0.84766369,221.25,221.15,0.12549]
[1734105790340,0.84766369,221.25,221.08,34.87253295]
[1734105790540,20.0,221.23,221.06,34.87253295]
[1734105790742,20.0,221.18,221.04,34.87253295]
[1734105791041,0.84794904,221.17,221.02,34.87253295]
[1734105791239,20.0,221.13,220.97,34.87253295]
[1734105791446,20.0,221.13,220.88,34.87253295]
[1734105791447,6.5306,221.11,220.95,34.87253295]
[1734105791737,6.5306,221.11,220.88,34.87253295]
[1734105791738,20.0,221.08,220.89,34.87253295]
[1734105791976,20.0,221.06,220.89,34.87253295]
[1734105792141,0.84850817,221.05,220.89,34.87253295]
[1734105792352,11.3101,221.04,220.89,34.87253295]
[1734105792547,0.84842338,221.03,220.93,34.87253295]
[1734105792791,0.84842338,221.03,220.89,34.87253295]
[1734105792948,0.84842338,221.03,220.87,34.87253295]
[1734105793447,0.84842338,221.03,220.89,34.87253295]
[1734105793648,0.84848732,221.04,220.91,34.87253295]
[1734105794192,11.3106,221.03,220.87,34.87253295]
[1734105794383,20.0,220.99,220.85,34.87253295]
[1734105794554,30.156084,220.97,220.81,34.87253295]
[1734105794754,30.156084,220.97,220.79,34.87253295]
[1734105794755,20.0,220.94,220.79,34.87253295]
[1734105794965,0.84881918,220.93,220.81,34.87253295]
[1734105795172,0.84881918,220.96,220.85,34.87253295]
[1734105795553,0.84881918,220.96,220.83,34.87253295]
[1734105795752,0.84881918,220.96,220.73,2.76486059]
[1734105795974,20.0,220.92,220.81,34.87253295]
[1734105796383,0.84883922,220.94,220.83,34.87253295]
[1734105796587,0.84872474,220.96,220.85,34.87253295]
[1734105796973,0.84872474,220.96,220.86,0.12549]
[1734105797583,6.3792,220.97,220.89,34.87253295]
[1734105797768,0.84854925,221.03,220.93,34.87253295]
[1734105798107,0.84842389,221.04,220.93,34.87253295]
[1734105798310,0.84842389,221.04,220.91,34.87253295]
[1734105798469,0.84842389,221.04,220.93,34.87253295]
[1734105799567,0.84842389,221.04,220.91,34.87253295]
[1734105799765,11.3106,221.03,220.88,0.12549]
[1734105799983,0.84863837,221.02,220.88,0.12549]
[1734105800161,20.0,221.0,220.85,34.87253295]
[1734105800500,0.84869076,221.02,220.91,34.87253295]
[1734105800709,0.84845023,221.04,220.93,34.87253295]
[1734105801004,0.84845023,221.04,220.89,34.87253295]
[1734105801483,0.84845023,221.04,220.91,34.87253295]
[1734105801668,0.84845023,221.04,220.93,34.87253295]
[1734105801862,6.5475,221.05,220.98,0.12549]
[1734105802086,6.0077,221.11,221.01,34.87253295]
[1734105802472,0.84807587,221.1,220.99,34.87253295]
[1734105803373,0.84807587,221.1,220.98,0.12549]
[1734105803613,0.84807587,221.1,221.01,34.87253295]
[1734105803778,6.0077,221.11,221.03,34.87253295]
[1734105804102,6.0077,221.11,221.02,0.12549]
[1734105804681,0.84802965,221.16,221.04,0.12549]
[1734105804892,7.39274592,221.17,221.07,34.87253295]
[1734105805083,0.84790041,221.16,221.05,34.87253295]
[1734105805511,0.84790041,221.16,221.01,34.87253295]
[1734105805801,0.84790041,221.16,221.03,34.87253295]
[1734105806800,20.0,221.12,220.95,34.87253295]
[1734105806996,20.0,221.08,220.93,34.87253295]
[1734105807190,0.84836179,221.07,220.93,34.87253295]
[1734105807576,0.84836179,221.07,220.94,34.87253295]
[1734105807775,23.776884,221.06,220.9,34.87253295]
[1734105807998,20.0,221.03,220.88,34.87253295]
[1734105808191,23.776884,221.01,220.88,34.87253295]
[1734105808377,0.84866748,221.0,220.86,34.87253295]
[1734105808578,0.84866748,221.0,220.88,34.87253295]
[1734105808778,0.84866748,221.0,220.86,34.87253295]
[1734105809078,0.84866748,221.0,220.88,34.87253295]
[1734105809276,7.42555361,221.02,220.9,34.87253295]
[1734105809683,7.42555361,221.02,220.86,34.87253295]
[1734105809895,23.776884,221.01,220.84,34.87253295]
[1734105810081,23.776884,220.99,220.84,34.87253295]
[1734105810299,0.8486935,220.98,220.84,34.87253295]
[1734105810794,0.8486935,220.98,220.86,34.87253295]
[1734105811295,0.8486935,220.98,220.84,34.87253295]
[1734105811600,0.8486935,220.98,220.78,34.87253295]
[1734105811601,23.776884,220.93,220.78,34.87253295]
[1734105811806,20.0,220.9,220.74,34.87253295]
[1734105812007,0.84905363,220.89,220.8,34.87253295]
[1734105812216,20.84909873,220.95,220.8,34.87253295]
[1734105812423,0.84909873,220.95,220.84,34.87253295]
[1734105812575,0.84909873,220.95,220.82,34.87253295]
[1734105812986,20.84909873,220.95,220.8,34.87253295]
[1734105813175,20.0,220.91,220.78,34.87253295]
[1734105813379,0.84898247,220.9,220.78,34.87253295]
[1734105813693,0.84898247,220.9,220.8,34.87253295]
[1734105813892,12.4594,220.96,220.82,34.87253295]
[1734105814093,0.84876159,220.95,220.84,34.87253295]
[1734105814296,1.145,220.96,220.77,34.87253295]
[1734105814511,0.84871563,220.99,220.77,34.87253295]
[1734105814512,0.84871563,220.99,220.87,0.12549]
[1734105814857,0.84871563,220.99,220.88,34.87253295]
[1734105815117,0.84858018,221.01,220.89,0.12549]
[1734105815684,0.84858018,221.01,220.88,34.87253295]
[1734105816228,34.78378018,221.01,220.85,0.12549]
[1734105816916,20.0,220.98,220.85,0.12549]
[1734105817216,0.84873864,220.97,220.85,0.12549]
[1734105817593,20.0,220.98,220.88,34.87253295]
[1734105817806,0.84868009,221.0,220.89,0.12549]
[1734105818811,0.84868009,221.0,220.87,0.12549]
[1734105819120,11.3118,221.01,220.9,34.87253295]
[1734105819121,0.84854278,221.01,220.9,34.87253295]
[1734105819312,0.84847774,221.01,220.91,0.12549]
[1734105819502,0.84847774,221.01,220.88,34.87253295]
[1734105819704,0.84847774,221.01,220.87,0.12549]
[1734105819934,0.84847774,221.01,220.88,34.87253295]
[1734105820304,0.84847774,221.01,220.89,0.12549]
[1734105820504,0.84847862,221.01,220.89,0.12549]
[1734105821542,0.84847067,221.06,220.93,0.12549]
[1734105821715,6.2509,221.1,220.91,23.776884]
[1734105821716,6.2509,221.1,220.96,34.87253295]
[1734105821924,6.2509,221.1,221.0,34.87253295]
[1734105822411,12.15570865,221.09,220.94,34.87253295]
[1734105822634,12.15570865,221.09,220.92,34.99802295]
[1734105822937,23.776884,221.08,220.9,34.87253295]
[1734105823104,0.8484698,221.07,220.9,34.87253295]
[1734105823437,11.3096,221.05,220.88,34.87253295]
[1734105823640,0.84850091,221.04,220.88,34.87253295]
[1734105823932,0.84850091,221.04,220.9,34.87253295]
[1734105825707,0.84850091,221.04,220.91,0.12549]
[1734105825911,11.3106,221.03,220.88,34.87253295]
[1734105826129,0.84858324,221.02,220.89,0.12549]
[1734105826647,0.84858324,221.02,220.91,0.12549]
[1734105827159,20.0,221.04,220.93,0.12549]
[1734105827627,0.84842095,221.03,220.93,0.12549]
[1734105828041,0.84842095,221.03,220.88,21.62727355]
[1734105828257,0.84842095,221.03,220.86,21.62727355]
[1734105828425,0.84842095,221.03,220.84,21.62727355]
[1734105828627,23.776884,221.01,220.84,21.62727355]
[1734105828953,6.2303,220.93,220.78,21.62727355]
[1734105829119,11.3168,220.91,220.78,21.62727355]
[1734105829320,0.84897359,220.9,220.76,21.62727355]
[1734105829553,0.84897359,220.9,220.74,21.62727355]
[1734105829728,23.776884,220.89,220.74,21.62727355]
[1734105830059,0.84913196,220.88,220.74,21.62727355]
[1734105830551,0.84908677,220.9,220.76,21.62727355]
[1734105830739,20.0,220.88,220.76,21.62727355]
[1734105830920,0.84909268,220.87,220.74,21.62727355]
[1734105831325,20.0,220.88,220.76,21.62727355]
[1734105831623,20.0,220.9,220.78,21.62727355]
[1734105832142,0.84911909,220.92,220.8,21.62727355]
[1734105832345,0.84897721,220.91,220.8,21.62727355]
[1734105832847,6.2303,220.93,220.81,0.12549]
[1734105832848,0.84889566,220.92,220.81,0.12549]
[1734105833253,6.2303,220.93,220.83,0.12549]
[1734105833554,6.2303,220.93,220.85,0.12549]
[1734105833849,12.16214415,220.98,220.85,0.12549]
[1734105834532,12.16214415,220.98,220.87,0.12549]
[1734105834966,6.2722,220.99,220.91,0.12549]
[1734105835254,0.8484679,220.98,220.87,0.12549]
[1734105836150,6.2722,220.99,220.91,0.12549]
[1734105837555,0.84858885,221.04,220.92,21.62727355]
[1734105837731,17.6336,221.05,220.96,21.62727355]
[1734105837732,6.3236,221.05,220.96,21.62727355]
[1734105837933,6.3236,221.05,220.97,0.12549]
[1734105838670,11.308,221.09,220.97,0.12549]
[1734105838842,0.84816435,221.08,220.97,0.12549]
[1734105839051,11.308,221.09,220.97,0.12549]
[1734105839259,0.84819151,221.08,220.97,0.12549]
[1734105839555,6.1879,221.11,220.97,23.902374]
[1734105840164,0.8480899,221.1,220.97,0.12549]
[1734105840465,20.0,221.07,220.92,21.62727355]
[1734105840658,0.84837959,221.06,220.9,21.62727355]
[1734105840857,0.84837959,221.06,220.91,23.776884]
[1734105841239,0.84837959,221.06,220.88,21.62727355]
[1734105841447,20.0,221.05,220.86,21.62727355]
[1734105841663,20.0,221.01,220.86,21.62727355]
[1734105841864,0.84848324,221.0,220.86,21.62727355]
[1734105842171,0.84855611,221.03,220.88,21.62727355]
[1734105842336,11.3085,221.08,220.96,21.62727355]
[1734105842542,11.3085,221.08,220.88,21.62727355]
[1734105842543,6.1879,221.11,220.9,15.0]
[1734105842735,6.1879,221.11,221.0,21.62727355]
[1734105843266,6.1879,221.11,221.01,0.12549]
[1734105844160,0.84806098,221.15,221.04,21.62727355]
[1734105844343,7.1713027,221.18,221.05,0.12549]
[1734105844745,11.3024,221.2,221.08,21.62727355]
[1734105844961,18.5914898,221.24,221.12,0.12549]
[1734105845278,6.4437,221.24,221.1,35.07852299]
[1734105845486,0.84760856,221.23,221.06,0.12549]
[1734105845646,0.84760856,221.23,221.07,35.07852299]
[1734105845984,0.84760856,221.23,221.08,0.12549]
[1734105846157,0.84760856,221.23,220.99,42.74702299]
[1734105846158,12.14800856,221.23,221.03,35.07852299]
[1734105846345,12.14800856,221.23,221.04,0.12549]
[1734105846672,20.0,221.2,221.04,23.902374]
[1734105846840,0.84781352,221.19,221.08,0.12549]
[1734105847479,0.84781352,221.19,221.05,35.07852299]
[1734105847642,11.303,221.18,221.04,0.12549]
[1734105847850,0.8479308,221.17,221.04,0.12549]
[1734105848276,20.0,221.2,221.06,23.902374]
[1734105848277,0.84792063,221.19,221.06,23.902374]
[1734105848445,20.84792063,221.19,221.06,0.12549]
[1734105848874,0.84787033,221.22,221.08,0.12549]
[1734105849073,12.14831684,221.23,221.1,0.12549]
[1734105849740,12.14831684,221.23,221.08,0.12549]
[1734105849945,12.14831684,221.23,221.05,35.07852299]
[1734105850259,23.776884,221.22,221.03,35.07852299]
[1734105850446,0.84791855,221.21,221.07,35.07852299]
[1734105850641,0.84773993,221.22,221.09,35.07852299]
[1734105850947,0.847681,221.23,221.09,35.07852299]
[1734105851156,0.847681,221.23,221.1,0.12549]
[1734105851363,6.4437,221.24,221.12,0.12549]
[1734105851676,6.4437,221.24,221.14,0.12549]
[1734105854585,1.99258175,221.29,221.16,0.12549]
[1734105854753,11.2979,221.28,221.16,0.12549]
[1734105855069,0.84752603,221.27,221.16,0.12549]
[1734105855248,0.84752603,221.27,221.14,0.12549]
[1734105855445,0.8475088,221.28,221.15,35.07852299]
[1734105855642,1.145,221.29,221.16,0.12549]
[1734105855643,20.0,221.27,221.16,0.12549]
[1734105855847,6.4455,221.3,221.2,35.07852299]
[1734105856048,7.29272642,221.35,221.21,0.12549]
[1734105856469,7.29272642,221.35,221.21,35.20401299]
[1734105856669,7.29272642,221.35,221.21,0.12549]
[1734105858078,23.776884,221.33,221.14,36.71072299]
[1734105858281,33.8844,221.34,221.1,35.07852299]
[1734105858282,23.776884,221.31,221.1,35.07852299]
[1734105858485,20.0,221.28,221.1,35.07852299]
[1734105858793,20.0,221.28,221.14,35.07852299]
[1734105859085,0.84741989,221.33,221.19,35.07852299]
[1734105859268,20.0,221.31,221.19,35.07852299]
[1734105859453,20.0,221.31,221.2,35.07852299]
[1734105859661,20.0,221.32,221.22,35.07852299]
[1734105859863,20.0,221.32,221.23,0.12549]
[1734105860282,7.29266936,221.35,221.21,0.12549]
[1734105860481,7.29266936,221.35,221.21,35.20401299]
[1734105860780,7.29266936,221.35,221.21,0.12549]
[1734105860981,18.58746936,221.35,221.21,0.12549]
[1734105862577,31.2959,221.32,221.15,35.07852299]
[1734105862778,0.84746282,221.31,221.14,35.07852299]
[1734105862971,0.84746282,221.31,221.15,35.07852299]
[1734105863169,0.84746282,221.31,221.16,35.07852299]
[1734105863370,23.776884,221.3,221.14,35.07852299]
[1734105863571,0.84752662,221.29,221.14,35.07852299]
[1734105863775,20.0,221.27,221.11,35.07852299]
[1734105863976,23.776884,221.25,221.09,35.07852299]
[1734105864157,0.84772059,221.24,221.09,35.07852299]
[1734105864359,20.0,221.22,221.07,43.04922299]
[1734105864584,0.84773533,221.21,221.07,43.04922299]
[1734105865291,0.84773533,221.21,221.03,35.07852299]
[1734105865292,20.0,221.17,221.03,35.07852299]
[1734105865463,0.84788884,221.16,221.03,35.07852299]
[1734105865863,0.84788884,221.16,221.0,6.4005]
[1734105865864,0.84788884,221.16,221.0,35.07852299]
[1734105866268,0.84788884,221.16,221.02,35.07852299]
[1734105866659,7.39017142,221.21,221.08,35.07852299]
[1734105866865,6.5422,221.21,221.1,35.07852299]
[1734105867061,6.5422,221.21,221.13,35.07852299]
[1734105867285,6.5422,221.21,221.09,35.07852299]
[1734105867467,6.5422,221.21,221.12,0.12549]
[1734105867791,6.4322,221.27,221.14,0.12549]
[1734105868082,6.4322,221.27,221.15,35.07852299]
[1734105868262,6.4322,221.27,221.18,0.12549]
[1734105868889,0.84737108,221.26,221.12,35.07852299]
[1734105869093,0.84737108,221.26,221.13,0.12549]
[1734105869276,6.4322,221.27,221.16,35.20401299]
[1734105869475,6.4322,221.27,221.16,35.07852299]
[1734105869677,6.4322,221.27,221.17,0.12549]
[1734105869889,6.5483,221.33,221.2,35.07852299]
[1734105870082,0.84732066,221.32,221.21,0.12549]
[1734105870280,6.5483,221.33,221.21,0.12549]
[1734105870480,0.84724771,221.32,221.21,0.12549]
[1734105870796,6.5483,221.33,221.21,0.12549]
[1734105870962,6.5483,221.33,221.23,35.20401299]
[1734105871164,6.5483,221.33,221.25,0.12549]
[1734105871396,6.5483,221.33,221.23,35.20401299]
[1734105871806,6.5483,221.33,221.24,35.07852299]
[1734105872007,6.5483,221.33,221.25,0.12549]
[1734105873292,6.2191,221.38,221.29,35.07852299]
[1734105873477,6.2191,221.38,221.3,0.12549]
[1734105873878,0.84717389,221.4,221.3,35.20401299]
[1734105874098,1.36819159,221.42,221.31,35.07852299]
[1734105874299,1.36819159,221.42,221.3,35.20401299]
[1734105874499,12.65909159,221.42,221.27,35.07852299]
[1734105874701,12.65909159,221.42,221.27,0.12549]
[1734105875267,31.2924,221.39,221.27,0.12549]
[1734105875570,23.776884,221.37,221.22,35.07852299]
[1734105875770,20.0,221.34,221.22,35.07852299]
[1734105875966,0.84724006,221.33,221.21,35.07852299]
[1734105876392,0.84724006,221.33,221.19,35.07852299]
[1734105877803,0.84724006,221.33,221.14,1.5095]
[1734105877804,11.2958,221.32,221.15,35.07852299]
[1734105877987,20.0,221.29,221.15,35.07852299]
[1734105878176,0.84748274,221.28,221.15,35.07852299]
[1734105878378,20.0,221.29,221.17,35.07852299]
[1734105878684,0.84743812,221.31,221.19,35.07852299]
[1734105879075,20.0,221.31,221.2,0.12549]
[1734105879611,0.84724874,221.33,221.2,0.12549]
[1734105881384,6.6318,221.34,221.23,35.07852299]
[1734105881605,6.6318,221.34,221.24,35.20401299]
[1734105881921,11.2921,221.4,221.26,35.20401299]
[1734105882119,0.84702055,221.39,221.26,35.20401299]
[1734105882462,6.95081614,221.41,221.29,0.12549]
[1734105882582,0.84701614,221.38,221.26,0.12549]
[1734105882911,17.3954,221.41,221.25,0.12549]
[1734105882912,0.84717269,221.4,221.25,0.12549]
[1734105883088,0.84717269,221.4,221.27,0.12549]
[1734105883622,20.0,221.38,221.28,35.07852299]
[1734105883902,20.0,221.38,221.27,35.20401299]
[1734105884077,0.84717269,221.4,221.27,35.20401299]
[1734105884479,0.84717269,221.4,221.21,35.07852299]
[1734105884480,20.0,221.36,221.21,35.07852299]
[1734105884715,0.847236,221.35,221.21,35.07852299]
[1734105884875,0.847236,221.35,221.22,35.07852299]
[1734105885586,0.847236,221.35,221.21,35.07852299]
[1734105885786,0.847236,221.35,221.22,35.07852299]
[1734105885989,20.84719936,221.38,221.26,35.07852299]
[1734105886229,20.0,221.38,221.26,35.07852299]
[1734105886729,20.0,221.38,221.27,0.12549]
[1734105886905,20.0,221.38,221.27,35.20401299]
[1734105887300,20.0,221.38,221.27,21.68451056]
[1734105887521,20.0,221.38,221.27,0.12549]
[1734105888527,20.0,221.38,221.27,21.68451056]
[1734105888930,20.84705217,221.37,221.27,0.12549]
[1734105889129,20.84705217,221.37,221.16,15.0]
[1734105889130,32.14045217,221.37,221.24,21.55902056]
[1734105890129,32.14045217,221.37,221.22,21.55902056]
[1734105890442,23.776884,221.36,221.2,0.12549]
[1734105890756,0.84728926,221.35,221.2,0.12549]